{"text_format":"3","workbook":"xlsx","n_sheets":2,"sheets":["Критерии оценки","Перечень профессиональных задач"],"read":"whole","date_system":"1900"}

{"sheet":"Критерии оценки","index":0,"n_rows":356,"n_cols":10,"rows_kept":356,"merged":[[5,1,5,7],[111,1,111,7],[142,1,142,7],[169,1,169,7],[211,1,211,7],[265,1,265,7],[307,1,307,7]]}
[null,"Мероприятие",null,"Региональный этап Чемпионата по профессиональному мастерству \"Профессионалы\"  - 2026 г."]
[null,"Наименование компетенции",null,"Предпринимательство"]
[]
["Код","Субкритерий","Тип аспекта","Аспект","Судейский балл","Методика проверки аспекта","Требование или номинальный размер","Проф. задача","Макс. балл"]
[]
["А","Бизнес-план",{"$nulls":6},{"$f":"SUM(I7:I111)","v":{"v":24.999999999999993,"d":"25.00"}}]
[1,"Бизнес-план"]
[null,null,"И","Установлена достоверность и подлинность представленной информации",null,"Определена  достоверность и подлинность представленной информации (проверка документов, сайтов, официальных сайтов)",null,1,{"v":0.4,"d":"0.40"}]
[null,null,"И","Соответствие количества разделов бизнес-плана и их заголовков конкурсному заданию",null,"Проверено соответствие количества разделов бизнес-плана и их заголовков конкурсному заданию",null,1,{"v":0.4,"d":"0.40"}]
[null,null,"И","Проверка авторства текста бизнес-плана на «антиплагиат» показала более 90%",null,"Проведена проверка авторства текста бизнес-плана на «антиплагиат» и показала более 90%",null,1,{"v":0.2,"d":"0.20"}]
[null,null,"И","Наличие в бизнес-плане четко сформулированной(ых) цели(ей) бизнеса в соответствии со SMART (конкретной, измеримой и ограниченной по времени)",null,"Определены в бизнес-плане четко сформулированной(ых) цели(ей) бизнеса в соответствии со SMART ",null,1,{"v":0.2,"d":"0.20"}]
[null,null,"И","Наличие в бизнес-плане четко сформулированных задач бизнеса, соответствующих поставленной(ым) цели(ям)",null,"Определены в бизнес-плане четко сформулированные  задачи бизнеса, соответствующие поставленной(ым) цели(ям)",null,1,{"v":0.3,"d":"0.30"}]
[null,null,"И","Наличие в бизнес-плане рабочих ссылок на данные официальных источников, используемых при расчетах",null,"Определено наличие в бизнес-плане рабочих ссылок на данные официальных источников",null,1,{"v":0.2,"d":"0.20"}]
[null,null,"И","Представлена положительная рецензия \\ экспертное заключение независимого авторитетного эксперта (органы власти, организации по поддержке МСП и т.п. компетентные организации) на фирменном бланке",null,{"$f":"D14","v":"Представлена положительная рецензия \\ экспертное заключение независимого авторитетного эксперта (органы власти, организации по поддержке МСП и т.п. компетентные организации) на фирменном бланке"},null,1,{"v":0.3,"d":"0.30"}]
[null,null,"И","Наличие в бизнес-плане проведен сценарный анализ рисков, связанных с реализацией бизнеса, и представлены меры по снижению негативного воздействия выявленных рисков на конечный результат.",null,"Представлен сценарный анализ рисков, связанных с реализацией бизнеса, и разработаны меры по снижению негативного воздействия выявленных рисков на конечный результат.",null,1,{"v":0.5,"d":"0.50"}]
[null,null,"И","Предоставлен документ подтверждающий регистрацию нового ООО/ИП на конкурсанта, регистрация в качестве самозанятых (max - 2).",null,"Проверена регистрация нового ООО/ИП на конкурсанта, регистрация в качестве самозанятых (срок деятельности ООО, ИП, самозанятых) на сайте https://egrul.nalog.ru/:\n- до 3 месяцев – 0,5 б. \n- от 3 до 6 месяцев – 1,0 б.\n- от 6 до 1 года – 1,5 б\n- более 1 года – 2 б.",null,1,{"v":2,"d":"2.00"}]
[null,null,"И","Предоставлен документ подтверждающий открытие расчетного счета ООО/ИП, скрин Справку о состоянии расчетов (доходах) по НПД на дату Д-6",null,{"$f":"D17","v":"Предоставлен документ подтверждающий открытие расчетного счета ООО/ИП, скрин Справку о состоянии расчетов (доходах) по НПД на дату Д-6"},null,1,{"v":0.3,"d":"0.30"}]
[null,null,"И","Предоставлен документ, подтверждающий поступления денежных средств от клиентов на расчетный счет ООО/ИП/самозанятого на дату Д-6",null,"Проверен документ, подтверждающий поступления денежных средств от клиентов на расчетный счет ООО/ИП/самозанятого:\n- до 50 000 (включая пробные продажи прототипов – 0,25 б.\n- от 50 001 до 250 000 – 0,5 б.\n- от 250 001 до 500 000 – 0,75 б.\n- от 500 001 до 1 млн рублей – 1 б.\n- свыше 1 млн – 2 б.",null,1,{"v":2,"d":"2.00"}]
[null,null,"И","Видеоролик не превышает 110 с, вес не превышает 150 Мб, формат  *.mov, *.avi, *.mp4. Присутствовать начальная заставка не менее 3 секунд (название проекта и ФИО автора) и конечная заставка не менее 3 секунд (название проекта + ссылка на сообщество ВКонтакте), реклама продукта/услуги не менее 20 секунд",null,"Осуществлена проверка формата, объема и содержания Видеоролика ",null,1,{"v":0.2,"d":"0.20"}]
[null,null,"И","В ролике конкурсант представляет себя и бизнес-идею",null,"Определено представление в ролике себя и бизнес-идеи",null,1,{"v":0.2,"d":"0.20"}]
[null,null,"И","В ролике обоснована правомерность используемых материалов, логотипов, аудио (либо использованы материалы конкурсанта проекта)",null,"В ролике представлен QR или ссылка для перехода на ссылку обоснованности правомерности используемых материалов ролика",null,1,{"v":0.2,"d":"0.20"}]
[null,null,"И","Рекламный плакат содержит визуальный образ продукта/услуги",null,"Проверено наличие визуального образа продукта/услуги в рекламном плакате",null,1,{"v":0.3,"d":"0.30"}]
[null,null,"И","Рекламный плакат содержит слоган, логотип или товарный знак",null,"Проверено наличие слогана, логотипа или товарного знака в рекламном плакате",null,1,{"v":0.3,"d":"0.30"}]
[null,null,"И","Рекламный плакат содержит контактные данные (корректные для связи с авторами проекта)",null,"Проверено содержание контактных данных в рекламном плакате для связи (ссылка на сообщество ВК)",null,1,{"v":0.3,"d":"0.30"}]
[null,null,"И","Предоставлен видеоролик - рассказ о купце 18-19 века своего региона",null,{"$f":"D25","v":"Предоставлен видеоролик - рассказ о купце 18-19 века своего региона"},null,1,{"v":0.5,"d":"0.50"}]
[null,null,"И","Видеоролик - рассказ о купце 18-19 века своего региона не превышает 180 с, вес не превышает 150 Мб, формат  *.mov, *.avi, *.mp4",null,"Видеоролик - рассказ о купце 18-19 века своего региона не превышает 180 с, вес не превышает 150 Мб, формат  *.mov, *.avi, *.mp4",null,1,{"v":0.2,"d":"0.20"}]
[null,null,"И","В видеоролике - рассказ о купце 18-19 века своего региона представлен рассказ о купце или меценате ",null,"В видеоролике - рассказ о купце 18-19 века своего региона представлен рассказ о купце или меценате ",null,1,{"v":0.5,"d":"0.50"}," "]
[null,null,"С","Качество обоснования выбора названия бизнес-проекта в БП или ролике",{"$nulls":3},1,{"v":0.5,"d":"0.50"}]
[{"$nulls":4},0,"Обоснование выбора названия поверхностное, не раскрывает связь названия с концепцией проекта, отсутствуют логические доводы в пользу выбранного названия. Не учтены ключевые маркетинговые аспекты."]
[{"$nulls":4},1,"Приведены базовые аргументы в пользу названия: отражена суть бизнеса, указана целевая аудитория. Название не противоречит позиционированию бренда, но не выделяется на фоне конкурентов. Учтены базовые маркетинговые требования"]
[{"$nulls":4},2,"Детально раскрыта логика выбора названия: связь с УТП, ценностями бренда, целевой аудиторией, отраслевыми трендами, проведён анализ ассоциативного ряда, который вызывает название, с учётом психологии восприятия. Название подчёркивает конкурентные преимущества проекта"]
[{"$nulls":4},3,"Обоснование выбора названия представлено как отдельный аналитический блок в БП, с использованием графиков, таблиц, инфографики,использованы нестандартные подходы к генерации названия. Представлена стратегия защиты интеллектуальной собственности"]
[null,null,"С","Креативность рекламного ролика",{"$nulls":3},1,{"v":0.5,"d":"0.50"}]
[{"$nulls":4},0,"Ролик использует избитые, устаревшие приёмы, не соответствующие современным трендам рекламы; отсутствует оригинальная концепция — содержание шаблонное, предсказуемое с первых секунд. Идея не связана с УТП (уникальным торговым предложением) бренда, не подчёркивает его преимущества."]
[{"$nulls":4},1,"Ролик выполнен в рамках общепринятых рекламных приёмов, без явных новаторских решений; концепция понятна и логична, но не выделяется на фоне конкурентов. Уровень креатива достаточен для выполнения базовой рекламной функции — информирования аудитории."]
[{"$nulls":4},2,"Концепция ролика нестандартна, но органично связана с позиционированием бренда; использованы оригинальные визуальные или сюжетные приёмы.  Ролик демонстрирует глубокое понимание целевой аудитории и её ценностей."]
[{"$nulls":4},3,"Ролик представляет собой выдающееся креативное решение, задающее новые стандарты в нише; используется инновационный подход к подаче УТП. Визуальная и звуковая составляющая создают уникальный художественный образ, который запоминается."]
[null,null,"С","Креативность рекламного плаката формата А3",{"$nulls":3},1,{"v":0.5,"d":"0.50"}]
[{"$nulls":4},0,"Плакат выполнен с использованием устаревших, избитых приёмов, не соответствующих современным трендам дизайна.концепция банальна, не отражает УТП (уникальное торговое предложение) услуги или продукта. Не учтена специфика формата А3 — элементы слишком мелкие или, наоборот, избыточно крупные"]
[{"$nulls":4},1,"Дизайн выполнен в рамках общепринятых правил рекламного плаката, без явных новаторских решений. Использованы стандартные, но качественные визуальные элементы (шрифты, изображения, цветовые схемы). Уровень креатива достаточен для выполнения базовой рекламной функции — информирования аудитории"]
[{"$nulls":4},2,"Концепция плаката нестандартна, но органично связана с позиционированием продукта или услуги. Использованы оригинальные визуальные приёмы. Дизайн учитывает специфику формата А3, оптимально использует пространство; использованы качественные изображения или иллюстрации, усиливающие восприятие УТП."]
[{"$nulls":4},3,"Плакат представляет собой креативное решение, задающее новые стандарты в нише. Визуальная составляющая создаёт уникальный художественный образ; использованы высококачественные оригинальные иллюстрации или фотографии, специально созданные для плаката. "]
[null,null,"С","Качество составления бизнес-плана (содержательная часть и оформление)",{"$nulls":3},1,{"v":1,"d":"1.00"}]
[{"$nulls":4},0,"Бизнес-план содержит существенные пробелы в ключевых разделах:отсутствует анализ рынка, финансовые расчёты, маркетинговая стратегия. логика изложения нарушена, информация представлена хаотично, без чёткой структуры. Бизнес-план не адаптирован под целевую аудиторию (инвесторов, партнёров, кредиторов)."]
[{"$nulls":4},1,"Бизнес-план включает все базовые разделы (резюме,  описание продукта/услуги, анализ рынка, производственный и организационный планы, стратегию маркетинга, финансы, анализ рисков. Структура логична, но шаблонна, без авторских решений. Расчёты основных финансовых показателей присутствуют, но в недостаточном объеме; анализ конкурентов и рынка проведён на базовом уровне, план содержит стандартные меры по управлению рисками. "," "]
[{"$nulls":4},2,"Бизнес-план отличается глубиной проработки всех разделов, включает нестандартные подходы к анализу и планированию. Проведен SWOT-анализ, PEST-анализ, с описанием полученных результатов, выполнены основные финансовые расчёты. Учтены особенности целевой аудитории, бизнес-план адаптирован под её восприятие. "," "]
[{"$nulls":4},3,"Бизнес-план представляет собой эталонный документ, задающий новые стандарты в отрасли. используются передовые методики анализа и планирования: бизнес-моделирование, сценарное планирование, имитационное моделирование. Финансовые прогнозы подкреплены сложными математическими моделями, анализ рынка основан на эксклюзивных данных, собственных исследованиях, патентованных методиках. Бизнес-план дополнен приложениями с детальными расчётами, кейсами, прототипами, дорожной картой развития."]
[2,{"$f":"B7","v":"Бизнес-план"}]
[null,null,"И","Финансовые расчеты в MS Excel выполнены в виде модели, позволяющей изменять основные переменные (цены, объемы продаж и т.д.) с автоматическим пересчетом итоговых показателей эффективности проекта (как минимум пересчитываются PP, DPP, NPV, IP)",null,"Проверены финансовые расчеты с автоматическим пересчетом итоговых показателей эффективности проекта  в MS Excel ",null,1,{"v":0.5,"d":"0.50"}]
[null,null,"И","Корректные расчеты стоимости продукции (работ, услуг) представлены с использованием как минимум одной известной модели калькуляции расходов, используя формулы (функции)",null,"Проверен корректный расчет стоимости продукции (работ, услуг)  с использованием как минимум одной известной модели калькуляции расходов, используя формулы (функции)",null,1,{"v":0.2,"d":"0.20"}]
[null,null,"И","Корректно составлен бюджет доходов и расходов",null,"Проверен корректно составленный бюджет доходов и расходов",null,1,{"v":0.2,"d":"0.20"}]
[null,null,"И","Корректно составлен бюджет движения денежных средств",null,"Проверен корректно составленный бюджет движения денежных средств",null,1,{"v":0.2,"d":"0.20"}]
[null,null,"И","Корректно составлен прогнозный баланс",null,"Проверен составленный баланс",null,1,{"v":0.2,"d":"0.20"}]
[null,null,"И","Представлен корректный расчет дисконтированного периода окупаемости проекта (Discounted Payback Period)",null,{"$f":"D54","v":"Представлен корректный расчет дисконтированного периода окупаемости проекта (Discounted Payback Period)"},null,1,{"v":0.2,"d":"0.20"}]
[null,null,"И","Представлен  корректный расчет/факт  чистой текущей стоимости проекта (Net Present Value)",null,"Представлен  корректный расчет/факт  чистой текущей стоимости проекта (Net Present Value)",null,1,{"v":0.2,"d":"0.20"}]
[null,null,"И","Представлен корректный расчет  внутренней нормы доходности проекта (Internal Rate of Return)",null,"Проверен корректный расчет  внутренней нормы доходности проекта (Internal Rate of Return)",null,1,{"v":0.2,"d":"0.20"}]
[null,null,"И","Представлен корректный расчет  индекса прибыльности проекта (Index of Profitability)",null,"Проверен корректный расчет  индекса прибыльности проекта (Index of Profitability)",null,1,{"v":0.2,"d":"0.20"}]
[null,null,"И","Представлен корректный расчет/факт  других значимых показателей (ARR, MIRR, ROE, ROI, EBIT, EBITDA)",null,"Проверен корректный расчет/факт  других значимых показателей (ARR, MIRR, ROE, ROI, EBIT, EBITDA)",null,1,{"v":0.2,"d":"0.20"}]
[null,null,"С","Качество составления финансовой модели",{"$nulls":3},1,{"v":0.2,"d":"0.20"}]
[{"$nulls":4},0,"Отсутствуют основные элементы финансовой модели. Расчёты содержат существенные арифметические или логические ошибки, искажающие картину финансового состояния. Структура модели хаотична, затрудняет проверку и использование."," "]
[{"$nulls":4},1,"Присутствуют ключевые элементы финансовой модели. Расчёты корректны, но могут содержать незначительные ошибки. Финансовая модель построена верно, с возможностью внесения изменений. Структура модели логична, просматривается связь с дпугими разделами БП, соответствует общепринятым шаблонам."," "]
[{"$nulls":4},2,"Финансовая модель детализирована, включает дополнительные элементы. Настройка финансовой модели позволяет вносить изменения в ее содержание. Расчёты точны. Структура модели оптимизирована для удобства использования: фильтрация, сводные таблицы, дашборды."," "]
[{"$nulls":4},3,"Финансовая модель представляет собой комплексную систему финансового планирования, интегрированную с другими аспектами бизнеса (маркетингом, логистикой, производством). Учтены микро- и макроэкономические факторы, влияющие на проект. Структура модели модульная, позволяет легко адаптировать её под изменения условий проекта."]
[null,null,"С","Реалистичность финансовых прогнозов",{"$nulls":3},1,{"v":0.5,"d":"0.50"}]
[{"$nulls":4},0,"Прогнозы содержат грубые ошибки в расчётах или логике; отсутствуют базовые предпосылки для прогнозов (анализ рынка, исторические данные, отраслевые тренды). Не учтены критически важные факторы: инфляция, курсовые колебания, налоговая нагрузка, сезонность. Прогнозы не согласуются с бизнес-моделью компании. "]
[{"$nulls":4},1,"Прогнозы построены на стандартных методах (трендовый анализ, экспертные оценки), соответствуют отраслевым практикам; учтены основные факторы (инфляция, налоги, сезонность) с использованием средних отраслевых показателей. присутствует базовый сценарий развития и краткий анализ рисков. Используются стандартные инструменты (Excel, 1С)."]
[{"$nulls":4},2,"Прогнозы включают углублённый анализ (PEST-анализ, SWOT-анализ); учтены специфические для проекта факторы (локальные экономические условия, технологические изменения); разработаны 3–5 сценариев развития. Прогнозы согласованы с другими разделами бизнес-плана (маркетинг, производство, логистика)."]
[{"$nulls":4},3,"Прогнозы построены с использованием передовых методов; учтены микро- и макроэкономические факторы, включая нестандартные. Сценарии развития включают экстремальные ситуации (форс-мажоры, кризисы) с планом антикризисных мер. Модель позволяет оперативно корректировать прогнозы при изменении внешних условий. "]
[3,"Бизнес-план"]
[null,null,"И","Сформулированы цели и задачи проведенных маркетинговых исследований",null,"Сформулированы цели и задачи проведенных маркетинговых исследований",null,3,0.25]
[null,null,"И","Представлены маркетинговые исследования, включающие в себя данные, анализ и выводы по каждой цели и (или)  задачам в формате MS Excel (максимум 1 б)",null,"Представлены маркетинговые исследования, включающие в себя данные, анализ и выводы в формате Excel:\n- в виде исходных данных - 0,25 б., \n- исходные данные с частичными выводами - 0,5 б.,\n- все элементы взаимосвязаны, позволяют сформулировать полноценные выводы -1 б.",null,1,{"v":1,"d":"1.00"}]
[null,null,"И","В бизнес-плане представлены основные характеристики типичного клиента (портрет),  на основании представленного и проведенного маркетинговых исследований в MS Excel",null,"В бизнес-плане представлены основные (качественные и количественные) характеристики типичного клиента (портрет) ядра ЦА:\nтолько в бизнес-плане - 0,5 б., \nПредставлены основные характеристики типичного клиента (портрет на основании представленного и проведенного маркетинговых исследований в Excel - 1 б.",null,1,{"v":1,"d":"1.00"}]
[null,null,"И","Подписчики предоставленной группы соответствуют выбранному ядру ЦА",null,"Ядро ЦА представленной группы находится на первом месте при анализе с помощью инструмента Targethunter - 2 б,  ядро ЦА  предоставленной группы находится на 2 месте при анализе с помощью инструмента Targethunter - 1 б, ядро ЦА  предоставленной группы находится на 3 месте при анализе с помощью инструмента Targethunter - 0,5 б, ядро ЦА  предоставленной группы находится на 4 и ниже месте при анализе с помощью инструмента Targethunter - 0 б",null,3,{"v":2,"d":"2.00"}]
[null,null,"И","Проведен анализ конкурентной среды по показателям, позволяющим выявить конкурентные преимущества",null,"Проведен анализ конкурентной среды по нескольким показателям -0,5 б. Проведен анализ конкурентной среды по  показателям, которые влияют на способность конкурировать, выявленных в маркетинговом исследовании в  Excel -1 б",null,3,{"v":1,"d":"1.00"}]
[null,null,"И","При проведении МИ использовался метод сбора \"Первичных данных\" ",null,"При проведении МИ использовались методы сбора \"наблюдение\", \"опрос\", \"эксперимент\" (каждый метод по 0,25 б., максимум 0,75 балла) ",null,3,0.75]
[null,null,"И","При проведении МИ использовался метод сбора \"Вторичных данных\"",null,"При проведении МИ использовался метод сбора вторичных данных",null,3,0.25]
[null,null,"С","Качество составленных вопросов анкеты проведенного исследования ",{"$nulls":3},3,0.25]
[{"$nulls":4},0,"Отсутствует все три критерия \"3\""]
[{"$nulls":4},1,"Отсутствует два критерия \"3\""]
[{"$nulls":4},2,"Отсутствует один из трех критериев \"3\""]
[{"$nulls":4},3,"Вопросы анкеты позволяют достичь целей исследования! Соблюден баланс открытых, альтернативных и закрытых вопросов.\nПрисутствуют вопросы: позволяющие проверить достоверность полученных данных"]
[null,null,"С","Качество используемых вторичных данных",{"$nulls":3},3,{"v":0.5,"d":"0.50"}]
[{"$nulls":4},0,"Качество собранных вторичных данных не соответствует целям и задачам, стоящим перед МИ"]
[{"$nulls":4},1,"Качество собранных вторичных данных частично соответствует целям и задачам, стоящим перед МИ"]
[{"$nulls":4},2,"Качество собранных вторичных данных полностью соответсвует целям и задачам, стоящим перед МИ"]
[{"$nulls":4},3,"Качество собранных вторичных данных превышают требованиям целям и задачам, стоящим перед МИ"]
[null,null,"С","Качество данных, собранных с помощью \"наблюдения\" ",{"$nulls":3},3,{"v":0.5,"d":"0.50"}]
[{"$nulls":4},0,"Качество собранных данных с помощью наблюдения не соответствует целям и задачам, стоящим перед МИ"]
[{"$nulls":4},1,"Качество собранных данных с помощью наблюдения частично соответствует целям и задачам, стоящим перед МИ"]
[{"$nulls":4},2,"Качество собранных данных с помощью наблюдения соответствует целям и задачам, стоящим перед МИ"]
[{"$nulls":4},3,"Качество собранных данных с помощью наблюдения превышают требованиям целям и задачам, стоящим перед МИ"]
[null,null,"С","Качество данных, собранных с помощью \"опрос\" ",{"$nulls":3},3,{"v":0.5,"d":"0.50"}]
[{"$nulls":4},0,"Качество собранных данных не соответствует целям и задачам, стоящим перед МИ"]
[{"$nulls":4},1,"Качество собранных данных частично соответствует целям и задачам, стоящим перед МИ"]
[{"$nulls":4},2,"Качество собранных данных полностью соответствует целям и задачам, стоящим перед МИ"]
[{"$nulls":4},3,"Качество собранных данных позволяют сформулировать гипотезу/  цель для следующего МИ"]
[null,null,"С","Качество данных, собранных с помощью \"эксперимент\" ",{"$nulls":3},3,{"v":0.5,"d":"0.50"}]
[{"$nulls":4},0,"Качество собранных данных не соответствует целям и задачам, стоящим перед МИ"]
[{"$nulls":4},1,"Качество собранных данных частично соответствует целям и задачам, стоящим перед МИ"]
[{"$nulls":4},2,"Качество собранных данных полностью соответсвует целям и задачам, стоящим перед МИ"]
[{"$nulls":4},3,"Качество собранных данных превышают требованиям целям и задачам, стоящим перед МИ"]
[null,null,"С","Качество проведенного анализа целевой аудитории",{"$nulls":3},3,{"v":1,"d":"1.00"}]
[{"$nulls":4},0,"Анализ поверхностный, не охватывает ключевые характеристики целевой аудитории. Использованы устаревшие или нерелевантные данные, не соответствующие текущей ситуации на рынке; отсутствует сегментация аудитории, все клиенты рассматриваются как однородная группа."]
[{"$nulls":4},1,"Проведён базовый анализ целевой аудитории с учётом основных параметров (возраст, пол, доход, география). Использованы общедоступные данные (отчёты отраслевых ассоциаций, открытые исследования рынка); выполнена простая сегментация (например, по возрасту или доходу)."]
[{"$nulls":4},2,"Проведён многомерный анализ с учётом демографических, психографических и поведенческих факторов. Использованы как вторичные, так и первичные данные (опросы, интервью, анализ отзывов); выполнена детальная сегментация с выделением 3–5 ключевых сегментов."]
[{"$nulls":4},3,"Анализ выполнен с применением передовых методик. Использованы эксклюзивные данные (внутренние базы компании, результаты глубинных интервью, анализ цифровых следов); сегментация гипердетальная (более 5 сегментов с микросегментацией внутри). "]
[null,null,"С","Представлен в бизнес-плане обоснованный маркетинговый бюджет (выбранные мероприятия и бюджет позволяют достичь цели)",{"$nulls":3},3,{"v":0.5,"d":"0.50"}]
[{"$nulls":4},0,"Бюджет не обоснован, суммы выбраны произвольно, без расчётов и привязки к целям. Мероприятия не связаны с целями бизнеса, носят формальный характер («сделать сайт», «запустить соцсети» без стратегии). Не учтена специфика бизнеса и рынка — бюджет скопирован «шаблонно» из других отраслей."]
[{"$nulls":4},1,"Бюджет сформирован на основе одного метода («процент от прибыли» или «конкурентный паритет»). Мероприятия соответствуют целям бизнеса, но описаны обобщённо. Бюджет распределён по основным каналам (контекстная реклама, соцсети, PR), но без оптимизации."]
[{"$nulls":4},2,"Бюджет рассчитан с использованием комбинации методов. Мероприятия чётко увязаны с целями и сегментами аудитории, есть персонификация. Бюджет распределён с учётом ROI каналов, выделены «пилотные» направления."]
[{"$nulls":4},3,"Бюджет построен на основе продвинутых моделей прогнозирования. Бюджет оптимизирован с помощью математических моделей. Разработана система «триггеров» для перераспределения бюджета (например, при изменении спроса).",{"$nulls":3}," "]
["Б","Презентация бизнес-идеи и автора",{"$nulls":6},{"$f":"SUM(I113:I142)","v":{"v":8,"d":"8.00"}}]
[1,{"$f":"B112","v":"Презентация бизнес-идеи и автора"}]
[null,null,"И","В презентации представлен способ генерирования бизнес-идеи и даны объяснения (разъяснения), как эти методы были применены в данном проекте",null,"Осуществлено представление и разъяснение способа генерирования бизнес-идеи",null,2,{"v":0.5,"d":"0.50"}]
[null,null,"И","В презентации представлен, разъяснён и обоснован метод оценки реализуемости бизнес-идеи на примере собственного проекта",null,"В презентации представлен, разъяснён и обоснован метод оценки реализуемости бизнес-идеи на примере собственного проекта",null,2,{"v":0.5,"d":"0.50"}]
[null,null,"И","Представлены и обоснованы знания, умения, навыки и компетенции конкурсанта, которые используются для реализации данного проекта",null,"Представлены и обоснованы  знания, умения, навыка и компетенции конкурсанта в проекте (подтвержденными документами и фактами):\n- знания – 0,25 б.;\n- знания и умения – 0,50 б.;\n- знания, умения и навыки (или навыки и компетенции, или знания, умения и компетенции) – 0,75 б.;\n- и знания, и умения, и навыки, и компетенции – 1,00 б.",null,2,{"v":1,"d":"1.00"}]
[null,null,"И","Представлены дальнейшие перспективы профессионального роста конкурсанта, связанные с его ролями/обязанностями в проекте",null,{"$f":"D117","v":"Представлены дальнейшие перспективы профессионального роста конкурсанта, связанные с его ролями/обязанностями в проекте"},null,2,{"v":0.5,"d":"0.50"}]
[null,null,"И","Описан и представлен реализуемый продукт (или прототип) или описан и представлен процесс предоставления услуги. Представлены их качественные характеристики",null,"Описан и представлен реализуемый продукт или описан и представлен процесс предоставления услуги",null,2,{"v":0.5,"d":"0.50"}]
[null,null,"И","Приведено не менее трех аргументов для демонстрации конкурентоспособности вашей фирмы (проекта) для ядра целевой аудитории",null,"Приведено не менее трех аргументов для демонстрации конкурентоспособности фирмы (проекта) на основании проведенного маркетингового исследования (подтверждённые фактами)",null,2,{"v":0.5,"d":"0.50"}]
[null,null,"И","Приведено не менее трех аргументов для демонстрации конкурентоспособности вашей продукции или услуги для ядра целевой аудитории",null,"Приведено не менее трех аргументов для демонстрации конкурентоспособности продукции или услуги на основании проведенного маркетингового исследования",null,2,{"v":0.5,"d":"0.50"}]
[null,null,"И","Прокомментирована модель А.Остервальдера для собственного бизнес-проекта",null,"Прокомментирована модель А.Остервальдера для собственного бизнес-проекта:\n- прокомментирована модель – 0,25 б\n- элементы модели не противоречат друг другу – 0,50 б\n- элементы модели конкретные и на основании: маркетингового исследования, фин.модели,  бизнес-процессов – 1,0 б.",null,2,{"v":1,"d":"1.00"}]
[null,null,"И","Презентация не превысила выделенный лимит времени (тайм-менеджмент)",null,"Проверено, что презентация:\n- не превысила выделенный лимит времени - 0,25 б.;\n- выделенное время на презентацию бизнес-идеи использовано более чем на 90% - 0,50 б.",null,6,{"v":0.5,"d":"0.50"}]
[null,null,"С","Качество обоснования определения ролей и функциональных обязанностей конкурсанта в проекте (бизнесе)",{"$nulls":3},2,{"v":0.5,"d":"0.50"}]
[{"$nulls":4},0,"Определение ролей и обязанностей конкурсанта не обосновано"]
[{"$nulls":4},1,"Обоснование ролей в большей степени основывается на знаниях и умениях конкурсанта"]
[{"$nulls":4},2,"Обоснование ролей в большей степени основывается на навыках конкурсанта"]
[{"$nulls":4},3,"Обоснование ролей в большей степени основывается на компетенциях конкурсанта"]
[null,null,"С","Обоснования конкурентоспособности на основе анализа рынка и конкурентов",{"$nulls":3},2,{"v":1,"d":"1.00"}]
[{"$nulls":4},0,"Отсутствует обоснование конкурентоспособности"]
[{"$nulls":4},1,"Факторы конкурентоспособности обоснованы, но носят общий характер"]
[{"$nulls":4},2,"Большая часть обоснованных факторов конкурентоспособности не носит общий характер и позволяют выделить компанию/продукт среди конкурентов"]
[{"$nulls":4},3,"Факторы конкурентоспособности действительно способны выделить компанию/продукт среди конкурентов и позволяют достичь успеха, удовлетворяя требования клиентов или рыночные условия лучше, чем другие альтернативы."]
[null,null,"С","Качество выступления",{"$nulls":3},5,{"v":0.5,"d":"0.50"}]
[{"$nulls":4},0,"Конкурсант читает с листов и/или со слайдов большую часть презентации"]
[{"$nulls":4},1,"Конкурсант не читает с листов и/или со слайдов, при этом темп речи комфортен для восприятия"]
[{"$nulls":4},2,"Конкурсант не читает с листов и/или со слайдов, темп речи комфортен для восприятия. Конкурсанты коммуницируют с аудиторией"]
[{"$nulls":4},3,"Конкурсант не читает с листов и/или со слайдов, темп речи комфортен для восприятия, конкурсанты коммуницируют с аудиторией/экспертами и встраивают реакции//ответы аудитории в свою презентацию"]
[null,null,"С","Качество электронной презентации",{"$nulls":3},5,{"v":0.5,"d":"0.50"}]
[{"$nulls":4},0,"Недостаточно на каждый слайд выделено времени для восприятия всей информации на нем. Или нарушены все три условия качества презентации на \"3\" или презентации отсутствует."]
[{"$nulls":4},1,"На каждый слайд выделено достаточно времени для восприятия всей информации на нем. Отсутствует два из трех условий качества презентации на \"3\""]
[{"$nulls":4},2,"На каждый слайд выделено достаточно времени для восприятия всей информации на нем. Отсутствует одно из трех условий качества презентации на \"3\""]
[{"$nulls":4},3,"На каждый слайд выделено достаточно времени для восприятия всей информации на нем. Текст, таблицы, картинки, графики, фотографии легко читаемы.  В презентации используется максимум 3 цвета, не более 3 шрифтов и не более 3 размеров шрифта",{"$nulls":3},8]
["В","Целевая группа",{"$nulls":6},{"$f":"SUM(I144:I169)","v":{"v":8.5,"d":"8.50"}}]
[1,"Целевая группа"]
[null,null,"И","Методы сбора и методы анализа, используемые при маркетинговом анализе рынка, соответствуют целям и задачам МИ",null,{"$f":"D145","v":"Методы сбора и методы анализа, используемые при маркетинговом анализе рынка, соответствуют целям и задачам МИ"},null,3,0.25]
[null,null,"И","Выделены целевые группы с применением методики сегментации целевой аудитории Ф.Котлера",null,"Выделены целевые группы с применением методики сегментации целевой аудитории Ф.Котлера",null,3,{"v":0.5,"d":"0.50"}]
[null,null,"И","Обоснован выбор ядра целевой аудитории",null,"Обоснован выбор ядра целевой аудитории",null,3,{"v":0.5,"d":"0.50"}]
[null,null,"И","Использованы официальные статистические данные для расчетов численности целевых групп",null,"Использованы официальные статистические данные для расчетов численности целевых групп",null,3,0.25]
[null,null,"И","Определен размер ядра целевой аудитории в количественном отношении для данной подукции/услуги, на основании  проведенных маркетинговых исследований",null,{"$f":"D149","v":"Определен размер ядра целевой аудитории в количественном отношении для данной подукции/услуги, на основании  проведенных маркетинговых исследований"},null,3,{"v":1,"d":"1.00"}]
[null,null,"И","Определен размер ядра целевой аудитории в стоимостном выражении для данного товара/услуги, на основании проведенных маркетинговых исследований",null,"Определен размер ядра целевой аудитории в стоимостном выражении для данного товара/услуги, на основании проведенных маркетинговых исследований",null,3,{"v":1,"d":"1.00"}]
[null,null,"И","Определена доля рынка от размера ядра целевой аудитории  в количественном отношении, которую планирует занять предприятие/фирма, на основании проведенного маркетингового исследования",null,"Определена доля рынка от размера ядра целевой аудитории  в количественном отношении, которую планирует занять предприятие/фирма, на основании проведенного маркетингового исследования",null,3,{"v":0.5,"d":"0.50"}]
[null,null,"И","Определена доля рынка от размера ядра целевой аудитории  в стоимостном отношении, которую планирует занять предприятие/фирма, на основании проведенного маркетингового исследования",null,"Определена доля рынка от размера ядра целевой аудитории, которую планирует занять (или занял)  предприятие/фирма, на основании проведенного маркетингового исследования",null,3,{"v":0.5,"d":"0.50"}]
[null,null,"И","Представлен фактический охват ЦА",null,{"$f":"D153","v":"Представлен фактический охват ЦА"},null,3,{"v":1,"d":"1.00"}]
[null,null,"И","Корректно рассчитан планируемый охват целевой аудитории, который необходим для реализации планов",null,"Рассчитан планируемый охват целевой аудитории, который необходим для реализации планов",null,3,{"v":0.5,"d":"0.50"}]
[null,null,"С","Обоснована возможность работы в секторе B2G",{"$nulls":3},3,{"v":1.5,"d":"1.50"}]
[{"$nulls":4},0,"Отсутсвует обоснование возможности работы в секторе B2G"]
[{"$nulls":4},1,"Частичное обоснование возможности работы в секторе B2G, не представлены конкретные клиенты сектора."]
[{"$nulls":4},2,"Полное обоснование возможности работы в секторе B2G, представлены основные клиенты сектора. "]
[{"$nulls":4},3,"Максимально полное обоснование возможности работы в секторе B2G, представлена модель взаимодействия с клиентами, учтены преимущества и недостатки."]
[null,null,"С","Качество выступления",{"$nulls":3},5,{"v":0.5,"d":"0.50"}]
[{"$nulls":4},0,"Конкурсант читает с листов и/или со слайдов большую часть презентации"]
[{"$nulls":4},1,"Конкурсант не читает с листов и/или со слайдов, при этом темп речи комфортен для восприятия"]
[{"$nulls":4},2,"Конкурсант не читает с листов и/или со слайдов, темп речи комфортен для восприятия. Конкурсанты коммуницируют с аудиторией"]
[{"$nulls":4},3,"Конкурсант не читает с листов и/или со слайдов, темп речи комфортен для восприятия, конкурсанты коммуницируют с аудиторией/экспертами и встраивают реакции//ответы аудитории в свою презентацию"]
[null,null,"С","Качество электронной презентации",{"$nulls":3},5,{"v":0.5,"d":"0.50"}]
[{"$nulls":4},0,"Недостаточно на каждый слайд выделено времени для восприятия всей информации на нем. Или нарушены все три условия качества презентации на \"3\" или презентации отсутствует."]
[{"$nulls":4},1,"На каждый слайд выделено достаточно времени для восприятия всей информации на нем. Отсутствует два из трех условий качества презентации на \"3\""]
[{"$nulls":4},2,"На каждый слайд выделено достаточно времени для восприятия всей информации на нем. Отсутствует одно из трех условий качества презентации на \"3\""]
[{"$nulls":4},3,"На каждый слайд выделено достаточно времени для восприятия всей информации на нем. Текст, таблицы, картинки, графики, фотографии легко читаемы.  В презентации используется максимум 3 цвета, не более 3 шрифтов и не более 3 размеров шрифта",{"$nulls":3},8.5]
["Г","Маркетинговое планирование",{"$nulls":6},{"$f":"SUM(I172:I211)","v":{"v":13.5,"d":"13.50"}}]
[1,"Маркетинговое планирование"]
[null,null,"И","В маркетинговом исследовании (в формате Excel) проведен и прокомментирован PEST-анализ обоснованы угрозы и возможности, влияющие на всю отрасль, в которой реализуется проект. В анализе указаны ссылки на вторичные данные",null,{"$f":"D172","v":"В маркетинговом исследовании (в формате Excel) проведен и прокомментирован PEST-анализ обоснованы угрозы и возможности, влияющие на всю отрасль, в которой реализуется проект. В анализе указаны ссылки на вторичные данные"},null,3,0.25]
[null,null,"И","В маркетинговом исследовании (в формате Excel) проведен и прокомментирован стратегический анализ с использованием модели 5 сил Портера для обоснования сильных и слабых сторон проекта",null,"В маркетинговом исследовании (в формате Excel) проведен и прокомментирован стратегический анализ с использованием модели 5 сил Портера для обоснования сильных и слабых сторон проекта",null,3,0.25]
[null,null,"И","Проведен и подробно прокомментирован в презентации модуля SWOT-анализ для обоснования направления развития бизнеса",null,"Выводы из проведенного SWOT-анализа сопоставлены с выводами из других стратегических анализов (PEST-анализ, 5 сил Портера). Результаты SWOT-анализа интегрированы в бизнес-план и маркетинговое исследование",null,3,0.25]
[null,null,"И","Маркетинговая стратегия определена и обоснована с использованием матрицы Ансоффа",null,{"$f":"D175","v":"Маркетинговая стратегия определена и обоснована с использованием матрицы Ансоффа"},null,3,{"v":0.5,"d":"0.50"}]
[null,null,"И","Разработан и представлен маркетинг-микс 4P, отражающий комплексный подход к управлению маркетинговой деятельностью",null,"Представить маркетинг-микс 4 Р, демонстрирующий  комплексный подход к маркетинговой деятельности.",null,3,0.25]
[null,null,"И","Обосновать выбор канала/ов сбыта и продвижения. ",null,"Обосновать выбор канала/ов сбыта и продвижения. ",null,3,0.25]
[null,null,"И","Определена и обоснована стратегия ценообразования",null,"Определена и обоснована стратегия ценообразования",null,4,0.25]
[null,null,"И","Сформулирована цель(и) в области маркетинга, выраженная в клиентах на два года, а также определены и обоснованы задачи, позволяющие достичь поставленную цель(и)",null,{"$f":"D179","v":"Сформулирована цель(и) в области маркетинга, выраженная в клиентах на два года, а также определены и обоснованы задачи, позволяющие достичь поставленную цель(и)"},null,3,{"v":0.5,"d":"0.50"}]
[null,null,"И","В видеоролике прорекламирован свой продукт/услуга по рекламной модели AIDA для ядра целевой аудитории с учетом выявленных ценностей",null,"В видеоролике прорекламирован свой продукт/услуга по рекламной модели AIDA для ядра целевой аудитории с учетом выявленных ценностей",null,3,{"v":0.5,"d":"0.50"}]
[null,null,"И","Разработан и обоснован детальный маркетинговый план для продвижения продукта/услуги на рынке для этапа запуска компании: до достижения точки безубыточности или текущее функционирование (после достижения точки безубыточности) с указанием конкретных ожидаемых результатов, сроков выполнения, ожидаемых результатов и стоимости (бюджета)",null,"Разработан и обоснован детальный маркетинговый план для продвижения продукта/услуги на рынке для этапа запуска компании: до достижения точки безубыточности или текущее функционирование (после достижения точки безубыточности) с указанием конкретных ожидаемых результатов, сроков выполнения, ожидаемых результатов и стоимости (бюджета)",null,3,{"v":1,"d":"1.00"}]
[null,null,"И","Разработан и обоснован детальный маркетинговый план на первые два года работы с указанием конкретных ожидаемых результатов, сроков выполнения, ожидаемых результатов и стоимости (бюджета).",null,"Разработан и обоснован детальный маркетинговый план на первые два года работы с указанием конкретных ожидаемых результатов, сроков выполнения, ожидаемых результатов и стоимости (бюджета).",null,3,{"v":0.5,"d":"0.50"}]
[null,null,"И","Обоснован выбор конкретных рекламных мероприятий, применяемых для каждого этапа жизненного цикла клиента (Знакомство, Рассмотрение, Покупка)",null,"Обоснован выбор рекламных мероприятий, применяемых для каждого этапа жизненного цикла клиента в виде воронки продаж (\"касаний\")",null,3,{"v":1,"d":"1.00"}]
[null,null,"И","Обоснован выбор рекламной/-х модели/-ей применимой для каждого этапа жизненного цикла клиента (Знакомство, Рассмотрение, Покупка)",null,{"$f":"D184","v":"Обоснован выбор рекламной/-х модели/-ей применимой для каждого этапа жизненного цикла клиента (Знакомство, Рассмотрение, Покупка)"},null,3,{"v":0.5,"d":"0.50"}]
[null,null,"И","Прокомментированы фактические   или обоснованы планируемые показатели  эффективности рекламных кампаний для каждого этапа жизненного цикла клиента. \n",null,{"$f":"D185","v":"Прокомментированы фактические   или обоснованы планируемые показатели  эффективности рекламных кампаний для каждого этапа жизненного цикла клиента. \n"},null,3,{"v":1.5,"d":"1.50"}]
[null,null,"И","Представлен корректный маркетинговый бюджет в соответствии с поставленными целями и задачами в области маркетинга",null,"Представлен корректный маркетинговый бюджет в соответствии с поставленными целями и задачами в области маркетинга",null,3,{"v":0.5,"d":"0.50"}]
[null,null,"И","Проведенные рекламные кампании нацелены на выбранный сегмент (пол, возраст, география и пр)",null,"Проведенные рекламные кампании нацелены на выбранный сегмент (пол, возраст, география и пр)",null,3,{"v":0.5,"d":"0.50"}]
[null,null,"И","Рекламные кампании проведены с использованием ценностного(ых) предложения(ий)",null,"Рекламные кампании проведены с использованием ценностного(ых) предложения(ий)",null,3,{"v":0.5,"d":"0.50"}]
[null,null,"И","Определены обязанности конкурсанта в области маркетинга, не противоречащих функциональным обязанностям",null,"Определены обязанности конкурсанта в области маркетинга, не противоречащих функциональным обязанностям",null,4,0.25]
[null,null,"И","Определена возможность передачи некоторых функций на аутсорсинг или обосновано отсутствие такой необходимости",null,"Определена возможность передачи некоторых функций на аутсорсинг или обосновано отсутствие такой необходимости",null,4,0.25]
[null,null,"И","Обоснование расчета стоимости привлечения одного клиента",null,"Обоснован расчет на фактически проведенных рекламных кампаний и не противоречащий маркетинговому бюджету",null,3,{"v":1,"d":"1.00"}]
[null,null,"С","Качество применения инструментария и выводов в части проведенного стратегического анализа",{"$nulls":3},3,{"v":1,"d":"1.00"}]
[{"$nulls":4},0,"Стратегическмй анализ маркетинговой деятельности отсутствует."]
[{"$nulls":4},1,"Стратегический анализ проведен не в полном объеме. Дана оценка состряния рынка продукта в соответсвии с результатами SWOT -анализа"]
[{"$nulls":4},2,"Стратегический анализ проведен в достаточной мере. Конкурсантом использованы два метода стратегического анализа. "]
[{"$nulls":4},3,"Стратегический анализ проведен максимально полно. Конкурсант использовал три метода стратегического анализа."]
[null,null,"С","Качество проведенных рекламных кампаний на основании созданных постов с отражением ценностных предложений",{"$nulls":3},3,{"v":1,"d":"1.00"}]
[{"$nulls":4},0,"Рекламная компания не учитывает цели и задачи маркетингового планирования. "]
[{"$nulls":4},1,"Рекламная компания частично учитывает цели и задачи маркетингового планирования, не достточное обоснование целевой аудитории, инструментов продвижения."]
[{"$nulls":4},2,"Рекламная компания полностью учитывает цели и задачи маркетингового планирования. Целевая аудитория обоснована, инструменты продвижения разнообразны. "]
[{"$nulls":4},3,"Рекламная компания максимально точно учитывает цели и задачи маркетингового планирования. Дано полное обоснование выбора целевой аудитории. "]
[null,null,"С","Качество выступления",{"$nulls":3},5,{"v":0.5,"d":"0.50"}]
[{"$nulls":4},0,"Конкурсант читает с листов и/или со слайдов большую часть презентации"]
[{"$nulls":4},1,"Конкурсант не читает с листов и/или со слайдов, при этом темп речи комфортен для восприятия"]
[{"$nulls":4},2,"Конкурсант не читает с листов и/или со слайдов, темп речи комфортен для восприятия. Конкурсанты коммуницируют с аудиторией"]
[{"$nulls":4},3,"Конкурсант не читает с листов и/или со слайдов, темп речи комфортен для восприятия, конкурсанты коммуницируют с аудиторией/экспертами и встраивают реакции//ответы аудитории в свою презентацию"]
[null,null,"С","Качество электронной презентации",{"$nulls":3},5,{"v":0.5,"d":"0.50"}]
[{"$nulls":4},0,"Недостаточно на каждый слайд выделено времени для восприятия всей информации на нем. Или нарушены все три условия качества презентации на \"3\" или презентации отсутствует."]
[{"$nulls":4},1,"На каждый слайд выделено достаточно времени для восприятия всей информации на нем. Отсутствует два из трех условий качества презентации на \"3\""]
[{"$nulls":4},2,"На каждый слайд выделено достаточно времени для восприятия всей информации на нем. Отсутствует одно из трех условий качества презентации на \"3\""]
[{"$nulls":4},3,"На каждый слайд выделено достаточно времени для восприятия всей информации на нем. Текст, таблицы, картинки, графики, фотографии легко читаемы.  В презентации используется максимум 3 цвета, не более 3 шрифтов и не более 3 размеров шрифта",{"$nulls":3}," "]
["Д","Планирование рабочего процесса",{"$nulls":6},{"$f":"SUM(I214:I265)","v":{"v":17,"d":"17.00"}}]
[1,"Планирование рабочего процесса"]
[null,null,"И","При планировании реализации проекта применена методика (концепция) управления производством (бизнес-процессами)",null,{"$f":"D214","v":"При планировании реализации проекта применена методика (концепция) управления производством (бизнес-процессами)"},null,6,{"v":0.5,"d":"0.50"}]
[null,null,"И","Продемонстрировано и прокомментировано использование методики принятия решений при управлении ключевыми бизнес-процессами",null,"Продемонстрировано и прокомментировано использование методики принятия решений при управлении ключевыми бизнес-процессами",null,6,{"v":0.5,"d":"0.50"}]
[null,null,"И","Представлен и прокомментирован факт применения программного обеспечения для управления бизнесом",null,"Представлен и прокомментирован факт применения программного обеспечения для управления бизнесом после выполнения модуля или защиты оценочной группе экспертов. Оценка выполняется по мероприятиям (задачам) отраженным в программе до Д-4.",null,6,{"v":0.5,"d":"0.50"}]
[null,null,"И","Обоснование выбора трех ключевых бизнес-процессов, обеспечивающих конкурентные преимущества, реализацию ценностного предложения и успешную реализацию финансовых планов.",null,{"$f":"D217","v":"Обоснование выбора трех ключевых бизнес-процессов, обеспечивающих конкурентные преимущества, реализацию ценностного предложения и успешную реализацию финансовых планов."},null,6,{"v":1,"d":"1.00"}]
[null,null,"И","Представлены и обоснованы показатели эффективности и результативности не менее 3-х бизнес-процессов",null,"Представлены и обоснованы показатели эффективности и результативности не менее 3-х бизнес-процессов, ",null,4,{"v":1,"d":"1.00"}]
[null,null,"И","Измеримость показателей эффективности",null,{"$f":"D219","v":"Измеримость показателей эффективности"},null,4,{"v":1,"d":"1.00"}]
[null,null,"И","Измеримость показателей результативности",null,"Измеримость показателей результативности",null,4,{"v":1,"d":"1.00"}]
[null,null,"И","Представлен и прокомментирован антикризисный план, минимизирующий негативное влияние выбранного фактора на итоговый результат ",null,"Представлен и прокомментирована антикризисный план на основе выделения наиболее важного(ых) фактора(ов), влияющего(их) на развитие бизнеса  - 1 б. Проведена оценка влияния  факторов на итоговый результат проекта - 2 б.",null,6,{"v":2,"d":"2.00"}]
[null,null,"И","Указана и обоснована потребность в информационных ресурсах (поименованные и указаны в стоимостном выражении), как минимум, для 3 ключевых бизнес-процессов ",null,"Указана и обоснована потребность в информационных ресурсах для, как минимум, 3 ключевых бизнес-процессов "," ",4,{"v":0.5,"d":"0.50"}]
[null,null,"И","Указана и обоснована потребность в финансовых ресурсах  (поименованные и указаны в стоимостном выражении), как минимум, для 3 ключевых бизнес-процессов",null,"Указана и обоснована потребность в финансовых ресурсах для, как минимум, 3 ключевых бизнес-процессов",null,4,{"v":0.5,"d":"0.50"}]
[null,null,"И","Указана и обоснована потребность в материальных ресурсах  (поименованные и указаны в стоимостном выражении) для, как минимум, 3 ключевых бизнес-процессов",null,{"$f":"D224","v":"Указана и обоснована потребность в материальных ресурсах  (поименованные и указаны в стоимостном выражении) для, как минимум, 3 ключевых бизнес-процессов"},null,4,{"v":0.5,"d":"0.50"}]
[null,null,"И","Указана и обоснована потребность в трудовых ресурсах  (поименованные и указаны в стоимостном выражении), как минимум, для 3 ключевых бизнес-процессов",null,"Указана и обоснована потребность в трудовых ресурсах  (поименованные и указаны в стоимостном выражении), как минимум, для 3 ключевых бизнес-процессов",null,4,{"v":0.5,"d":"0.50"}]
[null,null,"С","Качество обоснования и пояснения бизнес-процессов",{"$nulls":3},4,{"v":0.5,"d":"0.50"}]
[{"$nulls":4},0,"Обоснование и пояснение бизнес-процессов отсутствует"]
[{"$nulls":4},1,"Представлен и обоснован только один ключевой бизнес-процесс."]
[{"$nulls":4},2,"Представлены и обоснованы три ключевых бизнес-процесса, обеспечивающих конкурентые преимущества бизнеса."]
[{"$nulls":4},3,"Представлены и обоснованы более трех ключевых бизнес-процессов, обеспечивающих конкурентые преимущества,  бизнеса, с пояснениями успешной реализации финансовых планов."]
[null,null,"С","Качество применения методов структурирования бизнес-процессов",{"$nulls":3},4,{"v":1,"d":"1.00"}]
[{"$nulls":4},0," Бизнес-процессы структурированы, но не обоснованы"]
[{"$nulls":4},1,"Бизнес-процессы структурированы и обоснованы частично"]
[{"$nulls":4},2,"Бизнес-процессы структурированы и обоснованы."]
[{"$nulls":4},3,"Бизнес-процессы структурированы и обоснованы. Применяемая методика структурирования имеет пояснения."]
[null,null,"С","Логичность построения схемы бизнес-процессов",{"$nulls":3},4,{"v":1,"d":"1.00"}]
[{"$nulls":4},0,"Построение бизнес-процессов не логично"]
[{"$nulls":4},1,"Построение бизнес-процессов выстрено логично."]
[{"$nulls":4},2,"Построение бизнес-процессов выстроено логично. Присутсвует взаимсвязь единства и логики. Обоснован выбор схемы, нотации."]
[{"$nulls":4},3,"Построение бизнес-процессов выстроено логично, максимально эффективно для представленного бизнеса. Применены специализированные программные продукты. Даны пояснения."," "]
[null,null,"С","Прокомментирован пример принятия управленческого решения для ключевого бизнес-процесса",{"$nulls":3},6,{"v":2,"d":"2.00"}]
[{"$nulls":4},0,"Пример управленческого решения не прокомментирован. "]
[{"$nulls":4},1,"Пример управленческого решения прокомментирован."]
[{"$nulls":4},2,"Пример управленческого решения прокомментирован. Даны пояснения выбора концепции (методики) управления. Использован ИИ для автоматизации бизнес-ппроцессов."]
[{"$nulls":4},3,"Прокомментировано несколько управленческих решений для ключевых бизнес-процессов. Даны пояснения эффективности их применения. Использован ИИ для автоматизации бизнес-процессов."]
[null,null,"С","Использование показателей  эффективности/результативности в принятии управленческих решений",{"$nulls":3},6,{"v":1,"d":"1.00"}]
[{"$nulls":4},0,"Показатели эффективности/результативности в принятии управленческих решений не представлены."]
[{"$nulls":4},1,"Представлены два показателя эффективности/результативности в принятии управленческих решений."]
[{"$nulls":4},2,"Представлены и обоснованы три показателя эффективности/результативности в принятии управленческих решений. "]
[{"$nulls":4},3,"Представлены и обоснованы более трех показателей эффективности/результативности в принятии управленческих решений. "]
[null,null,"С","Качество управления бизнес-процессами (закрепление ответственности, показатели оценки, программные решения)",{"$nulls":3},4,{"v":1,"d":"1.00"}]
[{"$nulls":4},0,"Отсутствует чёткая система закрепления ответственности за бизнес-процессы, роли размыты. Нет системы мониторинга и оценки эффективности процессов."]
[{"$nulls":4},1,"Ответственность за бизнес-процессы закреплена на базовом уровне: есть владельцы процессов, но зоны ответственности пересекаются. Мониторинг эффективности проводится нерегулярно."]
[{"$nulls":4},2,"Чётко распределены роли и зоны ответственности, закреплены в должностных инструкциях и регламентах. Налажен регулярный мониторинг эффективности."]
[{"$nulls":4},3,"Создана многоуровневая система управления ответственностью, чёткие зоны контроля. Мониторинг эффективности ведётся непрерывно с визуализацией на дашбордах."]
[null,null,"С","Качество выступления",{"$nulls":3},5,{"v":0.5,"d":"0.50"}]
[{"$nulls":4},0,"Конкурсант читает с листов и/или со слайдов большую часть презентации"]
[{"$nulls":4},1,"Конкурсант не читает с листов и/или со слайдов, при этом темп речи комфортен для восприятия"]
[{"$nulls":4},2,"Конкурсант не читает с листов и/или со слайдов, темп речи комфортен для восприятия. Конкурсанты коммуницируют с аудиторией"]
[{"$nulls":4},3,"Конкурсант не читает с листов и/или со слайдов, темп речи комфортен для восприятия, конкурсанты коммуницируют с аудиторией/экспертами и встраивают реакции//ответы аудитории в свою презентацию"]
[null,null,"С","Качество электронной презентации",{"$nulls":3},5,{"v":0.5,"d":"0.50"}]
[{"$nulls":4},0,"Недостаточно на каждый слайд выделено времени для восприятия всей информации на нем. Или нарушены все три условия качества презентации на \"3\" или презентации отсутствует."]
[{"$nulls":4},1,"На каждый слайд выделено достаточно времени для восприятия всей информации на нем. Отсутствует два из трех условий качества презентации на \"3\""]
[{"$nulls":4},2,"На каждый слайд выделено достаточно времени для восприятия всей информации на нем. Отсутствует одно из трех условий качества презентации на \"3\""]
[{"$nulls":4},3,"На каждый слайд выделено достаточно времени для восприятия всей информации на нем. Текст, таблицы, картинки, графики, фотографии легко читаемы.  В презентации используется максимум 3 цвета, не более 3 шрифтов и не более 3 размеров шрифта",{"$nulls":3}," "]
["Е","Технико-экономическое обоснование проекта, включая финансовые инструменты и показатели",{"$nulls":6},{"$f":"SUM(I268:I307)","v":{"v":10,"d":"10.00"}}]
[1,"Технико-экономическое обоснование проекта, включая финансовые инструменты и показатели"]
[null,null,"И","Представлен и обоснован вариант организации и ведения бухгалтерского учета",null,"Представлен и обоснован вариант организации и ведения бухгалтерского учета",null,6,0.25]
[null,null,"И","Представлены корректные расчеты выбора наиболее оптимальной системы налогообложения (сравнение специальных режимов налогообложения и ОСН)",null,"Представлены корректные расчеты выбора наиболее оптимальной системы налогообложения (специальных режимов налогообложения и ОСН)",null,6,0.25]
[null,null,"И","Представлены корректные расчеты налоговых и других обязательных платежей в бюджеты бюджетной системы Российской Федерации",null,{"$f":"D270","v":"Представлены корректные расчеты налоговых и других обязательных платежей в бюджеты бюджетной системы Российской Федерации"},null,1,0.25]
[null,null,"И","Составлен корректный бюджет инвестиций (в т.ч. расходы стартового периода, перечень приобретаемых основных средств)",null,"Составлен бюджет инвестиций (в т.ч. расходы стартового периода, перечень приобретаемых основных средств)",null,1,0.25]
[null,null,"И","Представлен и обоснован корректный расчет потребности в оборотном капитале",null,"Представлен и обоснован корректный расчет потребности в оборотном капитале",null,1,{"v":0.5,"d":"0.50"}]
[null,null,"И","Определен и обоснован объем привлекаемого финансирования на основании данных БДДС",null,"Определен и обоснован объем привлекаемого финансирования на основании данных БДДС",null,4,0.75]
[null,null,"И","Проведена оценка структуры и динамики основных его статей на основании представленного бюджета доходов и расходов и ",null,"Представлен бюджет доходов и расходов - 0,25 б. Представлена структура и динамика доходов или расходов - 0,5 б.  Проведена оценка структуры и динамики доходов и расходов - 1 б.",null,1,{"v":1,"d":"1.00"}]
[null,null,"И","Корректно отображены изменения в БДР в результате получения меры поддержки МСП",null,{"$f":"D275","v":"Корректно отображены изменения в БДР в результате получения меры поддержки МСП"},null,5,{"v":0.5,"d":"0.50"}]
[null,null,"И","Корректно отображены изменения в БДДС в результате получения меры поддержки МСП",null,"Корректно отображены изменения в БДДС в результате получения меры поддержки МСП",null,5,{"v":0.5,"d":"0.50"}]
[null,null,"И","Корректно рассчитаны обновлённые показатели эффективности проекта в результате получения меры поддержки МСП ",null,"Корректно рассчитаны обновлённые показатели эффективности проекта в результате получения меры поддержки МСП ",null,3,0.25]
[null,null,"С","Качество обоснования внесенных изменений для достижения заявленной/-ых цели/-лей  развития бизнеса в результате получения меры поддержки МСП",{"$nulls":3},5,{"v":2,"d":"2.00"}]
[{"$nulls":4},0,"Цель привлечения заемного финансирования не сформулирована и/или внесенные изменения не способствуют достижению цели/-ей"]
[{"$nulls":4},1,"Цель привлечения заемного финансирования сформулирована и в модели изменены основные факторы в соответствии с заявленной целью (объем продаж, себестоимость, др.)"]
[{"$nulls":4},2,"Цель привлечения заемного финансирования четко сформулирована и в модели существенно изменены факторы в соответствии с заявленной целью (маркетинговая деятельность, постоянные расходы, др.). Качество обоснования внесенных изменений и их влияние на итоговый результат выше отраслевых стандартов"]
[{"$nulls":4},3,"Цель привлечения заемного финансирования четко сформулирована и в модели существенно изменены факторы в соответствии с заявленной целью (маркетинговая деятельность, постоянные расходы, др.). Качество обоснования внесенных изменений и их влияние на итоговый результат значительно выше отраслевых стандартов"]
[null,null,"С","Практико-ориентированность представленных расчетов",{"$nulls":3},5,{"v":1,"d":"1.00"}]
[{"$nulls":4},0,"Расчет финансовых показателей отсутсвует, иной режим налогооблажения не представлен. "]
[{"$nulls":4},1,"Финансовые расчеты выполнены частично, иной режим налогооблажения применен."," "]
[{"$nulls":4},2,"Представлен расчет основных финансовых показателей, с интерпритацией полученных результатов применительно к спкцифике региона"," "]
[{"$nulls":4},3,"Представлен и обоснован расчет основных финансовых показателей, с итерпритацией полученных результатов применительно к специфике региона "," "]
[null,null,"С","Качество обоснования показателей эффективности с экономической точки зрения",{"$nulls":3},5,{"v":1,"d":"1.00"}]
[{"$nulls":4},0,"Расчет финансовых показателей присутствует формально, без учета фактора времени."," "]
[{"$nulls":4},1,"Данные в таблице представлены с некоректно подобранной ставкой дисконтирования в их расчетах."," "]
[{"$nulls":4},2,"Данные в таблице соответсвуют выбранной ставке дисконтирования, расчеты верны. "," "]
[{"$nulls":4},3,"Данные в таблице соответствуют действительности, представлен расчет дополнительных финансовых показателей "," "]
[null,null,"С","Обоснование логичности представленных экономических показателей",{"$nulls":3},5,{"v":0.5,"d":"0.50"}]
[{"$nulls":4},0,"Конкурсант не использовал стандартные формулы для расчета показателей в таблицах"]
[{"$nulls":4},1,"Экономические показатели сопоставимы в динамике по годам. Плановые показатели недостаточно обоснованы. Конкурсант частично использовал стандартные формулы для расчета показателей в таблицах."," "]
[{"$nulls":4},2,"Экономические показатели сопоставимы в динамике по годам. Плановые показатели достаточно обоснованы. Конкурсант продемонстрировал все ключевые этапы работы с таблицами. Продемонстрировал уверенное владение техниками финансовых расчетов.  "," "]
[{"$nulls":4},3,"Конкурсант продемонстрировал все ключевые этапы работы с финансовыми расчетами в таблицах. Доказательно представил расчеты согласно специфики региона, продемонстрировал высокий уровень финансовой грамотности"]
[null,null,"С","Качество выступления",{"$nulls":3},5,{"v":0.5,"d":"0.50"}]
[{"$nulls":4},0,"Конкурсант читает с листов и/или со слайдов большую часть презентации"]
[{"$nulls":4},1,"Конкурсант не читает с листов и/или со слайдов, при этом темп речи комфортен для восприятия"]
[{"$nulls":4},2,"Конкурсант не читает с листов и/или со слайдов, темп речи комфортен для восприятия. Конкурсанты коммуницируют с аудиторией"]
[{"$nulls":4},3,"Конкурсант не читает с листов и/или со слайдов, темп речи комфортен для восприятия, конкурсанты коммуницируют с аудиторией/экспертами и встраивают реакции//ответы аудитории в свою презентацию"]
[null,null,"С","Качество электронной презентации",{"$nulls":3},5,{"v":0.5,"d":"0.50"}]
[{"$nulls":4},0,"Недостаточно на каждый слайд выделено времени для восприятия всей информации на нем. Или нарушены все три условия качества презентации на \"3\" или презентации отсутствует."]
[{"$nulls":4},1,"На каждый слайд выделено достаточно времени для восприятия всей информации на нем. Отсутствует два из трех условий качества презентации на \"3\""]
[{"$nulls":4},2,"На каждый слайд выделено достаточно времени для восприятия всей информации на нем. Отсутствует одно из трех условий качества презентации на \"3\""]
[{"$nulls":4},3,"На каждый слайд выделено достаточно времени для восприятия всей информации на нем. Текст, таблицы, картинки, графики, фотографии легко читаемы.  В презентации используется максимум 3 цвета, не более 3 шрифтов и не более 3 размеров шрифта"]
["Ж","Продвижение и презентация компании (фирмы, проекта) в регионе ",{"$nulls":6},{"$f":"SUM(I310:I355)","v":{"v":18,"d":"18.00"}}]
[1,"Продвижение и презентация компании (фирмы, проекта) в регионе "]
[null,null,"И","Представлены и прокомментированы факты использование на практике деловой переписки (данные адресата, данные получателя, вступление, которое содержит обращение, текст письма)",null,{"$f":"D310","v":"Представлены и прокомментированы факты использование на практике деловой переписки (данные адресата, данные получателя, вступление, которое содержит обращение, текст письма)"},null,5,{"v":0.5,"d":"0.50"}]
[null,null,"И","Представлены и прокомментированы факты использования в работе социальных сетей и/или сайтов для целей бизнеса",null,"Представлены и прокомментированы факты использования в работе социальных сетей и/или сайтов для целей бизнеса",null,3,{"v":0.5,"d":"0.50"}]
[null,null,"И","Представлены и прокомментированы факты использования в работе современных программных решений для бизнеса",null,"Продемонстрированы факты использования в работе современных программных решений для бизнеса - 0,50 б. Продемонстрировано использование современных программных продуктов при принятии управленческих решений - 1,00 б.",null,4,{"v":1,"d":"1.00"}]
[null,null,"И","Представлена и прокомментирована динамика развития проекта ",null,{"$f":"D313","v":"Представлена и прокомментирована динамика развития проекта "},null,2,{"v":0.5,"d":"0.50"}]
[null,null,"И","Представлена возможность получения региональных мер поддержки для субъектов малого и среднего предпринимательства (МСП) (вид консультационные)",null,"Представлена возможность получения региональных мер поддержки для субъектов малого и среднего предпринимательства (МСП) (вид консультационные) ",null,5,{"v":0.3,"d":"0.30"}]
[null,null,"И","Представлена возможность участия или получения региональных мер поддержки для субъектов малого и среднего предпринимательства (МСП) (вид обучение/сопровождение)",null,"Представлена возможность участия или получения региональных мер поддержки для субъектов малого и среднего предпринимательства (МСП) (вид обучение/сопровождение) ",null,5,{"v":0.5,"d":"0.50"}]
[null,null,"И","Представлена возможность участия или получения региональных мер поддержки для субъектов малого и среднего предпринимательства (МСП)  (вид продвижение)",null,"Представлена возможность участия или получения региональных мер поддержки для субъектов малого и среднего предпринимательства (МСП)  (вид продвижение) ",null,5,{"v":0.5,"d":"0.50"}]
[null,null,"И","Представлена возможность участия или получения региональных мер поддержки для субъектов малого и среднего предпринимательства (МСП) (вид финансирование)",null,"Представлена возможность участия или получения региональных мер поддержки для субъектов малого и среднего предпринимательства (МСП) (вид финансирование) ",null,5,{"v":0.5,"d":"0.50"}]
[null,null,"И","Представлена возможность участия или получения региональных мер поддержки для субъектов малого и среднего предпринимательства (МСП)  региона (иной вид)",null,"Представлена возможность участия или получения региональных мер поддержки для субъектов малого и среднего предпринимательства (МСП)  региона (иной вид) ",null,5,{"v":0.5,"d":"0.50"}]
[null,null,"И","Представлена возможность участия или получения федеральных мер поддержки для субъектов малого и среднего предпринимательства (МСП)  (вид консультационные)",null,"Представлена возможность участия или получения федеральных мер поддержки для субъектов малого и среднего предпринимательства (МСП)  (вид консультационные)",null,5,{"v":0.5,"d":"0.50"}]
[null,null,"И","Представлена возможность участия или получения федеральных мер поддержки для субъектов малого и среднего предпринимательства (МСП) (вид обучение/сопровождение)",null,"Представлена возможность участия или получения федеральных мер поддержки для субъектов малого и среднего предпринимательства (МСП) (вид  ",null,5,{"v":0.5,"d":"0.50"}]
[null,null,"И","Представлена возможность участия или получения федеральных мер поддержки для субъектов малого и среднего предпринимательства (МСП)  (вид продвижение)",null,"Представлена возможность участия или получения федеральных мер поддержки для субъектов малого и среднего предпринимательства (МСП)  (вид продвижение) ",null,5,{"v":0.5,"d":"0.50"}]
[null,null,"И","Представлена возможность участия или получения федеральных мер поддержки для субъектов малого и среднего предпринимательства (МСП) (вид финансирование)",null,"Представлена возможность участия или получения федеральных мер поддержки для субъектов малого и среднего предпринимательства (МСП)  региона (иной вид)",null,5,{"v":0.5,"d":"0.50"}]
[null,null,"И","Представлена возможность участия или получения федеральных мер поддержки для субъектов малого и среднего предпринимательства (МСП)  региона (иной вид)",null,"Представлена возможность участия или получения федеральных мер поддержки для субъектов малого и среднего предпринимательства (МСП)  региона (иной вид) ",null,5,{"v":0.2,"d":"0.20"}]
[null,null,"И","Продемонстрированы и прокомментированы прототипы (макеты, модели, разработанные программные решения, факты оказания услуги) продукта/услуги с учетом ценностного предложения для ядра целевой аудитории",null,"Продемонстрированы прототипы (макеты, модели, разработанные программные решения, факты оказания услуги) продукта/услуги",null,5,{"v":1,"d":"1.00"}]
[null,null,"И","Презентация не превысила выделенный лимит времени (тайм-менеджмент)",null,"Проверено, что презентация:\n- не превысила выделенный лимит времени - 0,25 б.;\n- выделенное время на презентацию бизнес-идеи использовано более чем на 90% - 0,50 б.",null,6,{"v":0.5,"d":"0.50"}]
[null,null,"И","Соблюдение требований инструкции по охране труда на протяжении всего регионального этапа чемпионата",null,"Соблюдение требований инструкции по охране труда на протяжении всего регионального этапа чемпионата:\nсистематические замечания (четыре и более) – 0 б. и удаление с чемпионата;\nтри замечания – 0,25 б.;\nдва замечания – 0,50 б.;\nодно замечание – 0,75 б.;\nнет замечаний – 1 б.",null,6,{"v":1,"d":"1.00"}]
[null,null,"С","Качество и наполненность контента официальных аккаунтов или сайтов фирмы (бизнес-проекта)",{"$nulls":3},3,{"v":1,"d":"1.00"}]
[{"$nulls":4},0,"Качество контента на низком уровне, не соответсвует ЦА. Наполнение соцчетей не передает информацию о продукте и компании, низкая оригинальность и ценность информации"]
[{"$nulls":4},1,"Частичное наполнение соцсетей, стиль в оформлении не выдержан, информация о продукте и компании не достатчна. Наполнение соответсвует интересам ЦА"]
[{"$nulls":4},2,"Хороший уровень наполнения соцсетей. Единый стиль в оформлении, достаточная и достоверная информация о продукте, его характеристиках и компании"]
[{"$nulls":4},3,"Всокий уроень наполнени соцсетей. Наличие авторского контента. Новизна решений в оформлении, полная достоверная информация о продукте, его характеристиках и компании."]
[null,null,"С","Владение основными средствами продвижения бизнес-проекта в регионе.",{"$nulls":3},2,{"v":1,"d":"1.00"}]
[{"$nulls":4},0,"Конкурсант не владеет информацией об основных средствах продвижения бизнес-проекта в регионе"]
[{"$nulls":4},1,"Конкурсант частично владеет информацией об основных средствах продвижения бизнес-проекта в регионе. Представил основные инструменты для продвижения бизнес-идеи в регионе."]
[{"$nulls":4},2,"Конкурсант владеет информацией об основных средствах продвижения бизнес-проекта в регионе. Знает специфику рекламных носителей в регионе, представил   PR инструменты с учетом специфики региона"]
[{"$nulls":4},3,"Конкурсант владеет информацией об основных средствах продвижения бизнес-проекта в регионе. Представил систему мероприятий стимулированию сбыта и организации личных продаж."]
[null,null,"С","Соответствие дресс-коду конкурсанта либо деловому стилю, либо форме, отражающей специфику проекта, отрасли и (или) региона",{"$nulls":3},5,{"v":0.5,"d":"0.50"}]
[{"$nulls":4},0,"Деловой стиль во внешнем виде конкурсанта отсутствует"]
[{"$nulls":4},1,"Деловой стиль соблюден частично, не отражает выбранную сферу деятельности бизнеса"]
[{"$nulls":4},2,"Деловой стиль в целом соблюден, приятен к восприятию"]
[{"$nulls":4},3,"Деловой стиль полностью соблюден с учетом специфики представленного продукта "]
[null,null,"С","Качество выступления",{"$nulls":3},5,{"v":0.5,"d":"0.50"}]
[{"$nulls":4},0,"Конкурсант читает с листов и/или со слайдов большую часть презентации"]
[{"$nulls":4},1,"Конкурсант не читает с листов и/или со слайдов, при этом темп речи комфортен для восприятия"]
[{"$nulls":4},2,"Конкурсант не читает с листов и/или со слайдов, темп речи комфортен для восприятия. Конкурсанты коммуницируют с аудиторией"]
[{"$nulls":4},3,"Конкурсант не читает с листов и/или со слайдов, темп речи комфортен для восприятия, конкурсанты коммуницируют с аудиторией/экспертами и встраивают реакции//ответы аудитории в свою презентацию"]
[null,null,"С","Качество электронной презентации",{"$nulls":3},5,{"v":0.5,"d":"0.50"}]
[{"$nulls":4},0,"Недостаточно на каждый слайд выделено времени для восприятия всей информации на нем. Или нарушены все три условия качества презентации на \"3\" или презентации отсутствует."]
[{"$nulls":4},1,"На каждый слайд выделено достаточно времени для восприятия всей информации на нем. Отсутствует два из трех условий качества презентации на \"3\""]
[{"$nulls":4},2,"На каждый слайд выделено достаточно времени для восприятия всей информации на нем. Отсутствует одно из трех условий качества презентации на \"3\""]
[{"$nulls":4},3,"На каждый слайд выделено достаточно времени для восприятия всей информации на нем. Текст, таблицы, картинки, графики, фотографии легко читаемы.  В презентации используется максимум 3 цвета, не более 3 шрифтов и не более 3 размеров шрифта"]
[2,"Ведение переговоров с клиентом"]
[null,null,"И","Нормы деловых переговоров",null,"Нормы деловых переговоров: (приветствие, представился конкурсант, выяснение у клиента как к нему можно обращаться, уверенность конкурсанта, уважительное обращение по имени к клиенту, отсутствие слов паразитов, не перебивать собеседника, благодарность за переговоры) за каждый элемент по 0,25 б.",null,5,{"v":2,"d":"2.00"}]
[null,null,"И","Выявление ценности для клиента",null,"Выявление ценности для клиента проходит в формате диалога через фокус на интересы клиента",null,3,{"v":1,"d":"1.00"}]
[null,null,"И","Коммерческое предложение продукта или услуги клиенту с учетом выявленной ценности",null,"Четко сформулировано ценностное предложение для клиента, начинающее с фразы \"Мое коммерческое предложение…\": коммерческое предложение содержит:\n- все три ценности указанные волонтером и выясненные в процессе переговоров - 2,00 б.;\n- коммерческое предложение содержит две ценности - 1,50 б.; \n- коммерческое предложение содержит одну ценности - 1,00 б.,\n- коммерческое предложение не содержит ценности - 0 б.\n",null,4,{"v":2,"d":"2.00"}]
[{"$nulls":6},"Итого:",null,{"$f":" 100","v":{"v":100,"d":"100.00"}}]

{"sheet":"Перечень профессиональных задач","index":1,"n_rows":7,"n_cols":2,"rows_kept":7,"merged":[[0,0,0,1]]}
["Перечень профессиональных задач"]
[1,"Бизнес документация"]
[2,"Работа с людьми"]
[3,"Целевая аудитория и маркетинговое планирование"]
[4,"Управление деятельностью и процессами"]
[5,"Продвижение бизнес-проекта в регионе с учетом широкого круга заинтересованных сторон"]
[6,"Охрана труда и техника безопасности. Бережливое производство"]